[Event "Early-Titled-Tuesday-Blitz-August-29-2023"]
[Site "Chess.com"]
[Date "2023.08.29"]
[Round "10"]
[White "19912131712118"]
[Black "AndresDelgado77"]
[Result "1-0"]
[WhiteElo "2412"]
[BlackElo "2260"]
[TimeControl "180+1"]
[EndTime "9:52:53 PDT"]
[Termination "19912131712118 won on time"]

1. e4 {[%clk 0:02:59.8]} 1... e6 {[%clk 0:02:59.6]} 2. d4 {[%clk 0:02:56.4]}
2... d5 {[%clk 0:02:59.7]} 3. Bd3 {[%clk 0:02:55.5]} 3... Nc6 {[%clk 0:02:55]}
4. exd5 {[%clk 0:02:44.6]} 4... exd5 {[%clk 0:02:52.1]} 5. Ne2 {[%clk
0:02:41.4]} 5... Bd6 {[%clk 0:02:51.7]} 6. O-O {[%clk 0:02:39.3]} 6... Nb4
{[%clk 0:02:38.5]} 7. Bb5+ {[%clk 0:02:37.7]} 7... Bd7 {[%clk 0:02:31.6]} 8.
Bxd7+ {[%clk 0:02:37.7]} 8... Qxd7 {[%clk 0:02:31.2]} 9. c3 {[%clk 0:02:38]}
9... Na6 {[%clk 0:02:26.8]} 10. b4 {[%clk 0:02:35.1]} 10... c6 {[%clk
0:02:26.9]} 11. Nd2 {[%clk 0:02:20.5]} 11... Nc7 {[%clk 0:02:27.7]} 12. Nf3
{[%clk 0:02:19]} 12... a5 {[%clk 0:02:20.3]} 13. a3 {[%clk 0:02:14.3]} 13...
axb4 {[%clk 0:02:16.7]} 14. cxb4 {[%clk 0:02:14]} 14... Bxb4 {[%clk 0:02:03]}
15. Qb3 {[%clk 0:02:13.4]} 15... Qe7 {[%clk 0:01:29.8]} 16. Ng3 {[%clk
0:02:01.1]} 16... Nb5 {[%clk 0:01:12.8]} 17. Nf5 {[%clk 0:01:42.5]} 17... Qf6
{[%clk 0:01:00.1]} 18. g4 {[%clk 0:01:34.6]} 18... Be7 {[%clk 0:00:47.7]} 19.
Bg5 {[%clk 0:01:32.4]} 19... Qg6 {[%clk 0:00:43.9]} 20. Rfe1 {[%clk 0:01:15]}
20... O-O-O {[%clk 0:00:30.8]} 21. Nxe7+ {[%clk 0:01:12.7]} 21... Nxe7 {[%clk
0:00:30.3]} 22. Bxe7 {[%clk 0:01:12.9]} 22... Qxg4+ {[%clk 0:00:30]} 23. Kh1
{[%clk 0:01:12.3]} 23... Rde8 {[%clk 0:00:18.8]} 24. a4 {[%clk 0:01:12]} 24...
Nxd4 {[%clk 0:00:10.9]} 25. Nxd4 {[%clk 0:01:12.9]} 25... Qxd4 {[%clk
0:00:11.1]} 26. Rab1 {[%clk 0:01:12.6]} 26... Qa7 {[%clk 0:00:08.5]} 27. Bc5
{[%clk 0:01:09.5]} 27... Rxe1+ {[%clk 0:00:06.9]} 28. Rxe1 {[%clk 0:01:08.6]}
28... Qxc5 {[%clk 0:00:07.2]} 29. Qh3+ {[%clk 0:01:08.6]} 29... Kb8 {[%clk
0:00:06.2]} 30. Qg3+ {[%clk 0:01:08.7]} 30... Ka7 {[%clk 0:00:05.9]} 31. Qxg7
{[%clk 0:01:08.3]} 31... Rb8 {[%clk 0:00:04]} 32. Qxf7 {[%clk 0:01:04.3]} 32...
Rf8 {[%clk 0:00:04.3]} 33. Qc7 {[%clk 0:01:00]} 33... Qxf2 {[%clk 0:00:03.7]}
34. Qa5+ {[%clk 0:00:52]} 34... Kb8 {[%clk 0:00:03.9]} 35. Qc3 {[%clk
0:00:51.5]} 35... Rf3 {[%clk 0:00:01.7]} 36. Re8+ {[%clk 0:00:50.2]} 36... Kc7
{[%clk 0:00:01.1]} 37. Qe5+ {[%clk 0:00:47.5]} 1-0

[Event "Early-Titled-Tuesday-Blitz-August-29-2023"]
[Site "Chess.com"]
[Date "2023.08.29"]
[Round "10"]
[White "cottage_cheese"]
[Black "Quattroporte300"]
[Result "0-1"]
[WhiteElo "2292"]
[BlackElo "2417"]
[TimeControl "180+1"]
[EndTime "9:52:56 PDT"]
[Termination "Quattroporte300 won by checkmate"]

1. e4 {[%clk 0:02:55.8]} 1... c5 {[%clk 0:02:59]} 2. Nf3 {[%clk 0:02:55.5]} 2...
d6 {[%clk 0:02:59.2]} 3. d4 {[%clk 0:02:55]} 3... cxd4 {[%clk 0:03:00.1]} 4.
Nxd4 {[%clk 0:02:55.1]} 4... Nf6 {[%clk 0:03:00.4]} 5. Nc3 {[%clk 0:02:55.7]}
5... a6 {[%clk 0:03:00.8]} 6. h3 {[%clk 0:02:55.8]} 6... e5 {[%clk 0:03:00.1]}
7. Nde2 {[%clk 0:02:55.5]} 7... h5 {[%clk 0:03:00.1]} 8. g3 {[%clk 0:02:53.7]}
8... Be6 {[%clk 0:02:59.3]} 9. Bg2 {[%clk 0:02:53.8]} 9... Qd7 {[%clk 0:02:53]}
10. a4 {[%clk 0:02:51]} 10... Be7 {[%clk 0:02:46.1]} 11. Bg5 {[%clk 0:02:42]}
11... Nc6 {[%clk 0:02:44.3]} 12. Bxf6 {[%clk 0:02:34.6]} 12... Bxf6 {[%clk
0:02:43.8]} 13. Nd5 {[%clk 0:02:35.5]} 13... Bd8 {[%clk 0:02:32.6]} 14. c4
{[%clk 0:02:12.1]} 14... O-O {[%clk 0:02:29.9]} 15. Qd3 {[%clk 0:01:55.8]} 15...
Rc8 {[%clk 0:02:23.9]} 16. Qf3 {[%clk 0:01:17.1]} 16... Ba5+ {[%clk 0:02:16.2]}
17. Kf1 {[%clk 0:01:16.4]} 17... Nd4 {[%clk 0:02:07.8]} 18. Nxd4 {[%clk
0:01:07.3]} 18... exd4 {[%clk 0:02:07.5]} 19. Qxh5 {[%clk 0:01:06.8]} 19... Rxc4
{[%clk 0:02:04.2]} 20. Kg1 {[%clk 0:00:58.7]} 20... Rc2 {[%clk 0:01:56.5]} 21.
b4 {[%clk 0:00:54.3]} 21... Bd8 {[%clk 0:01:50.5]} 22. Rf1 {[%clk 0:00:51.5]}
22... Qxa4 {[%clk 0:01:46.3]} 23. Nf4 {[%clk 0:00:35.9]} 23... Qxb4 {[%clk
0:01:41.4]} 24. e5 {[%clk 0:00:28.6]} 24... d5 {[%clk 0:01:30.1]} 25. Nxd5
{[%clk 0:00:25.1]} 25... Bxd5 {[%clk 0:01:26.9]} 26. Bxd5 {[%clk 0:00:26]} 26...
d3 {[%clk 0:01:20]} 27. Qf5 {[%clk 0:00:14.4]} 27... Qd4 {[%clk 0:01:07.6]} 28.
Bxb7 {[%clk 0:00:07.6]} 28... g6 {[%clk 0:01:05.4]} 29. Qf3 {[%clk 0:00:06.3]}
29... Bb6 {[%clk 0:00:58.8]} 30. Kg2 {[%clk 0:00:04.5]} 30... Rd8 {[%clk
0:00:47.3]} 31. Bxa6 {[%clk 0:00:03.7]} 31... d2 {[%clk 0:00:43.5]} 32. e6
{[%clk 0:00:02.8]} 32... fxe6 {[%clk 0:00:41.7]} 33. Be2 {[%clk 0:00:01.6]}
33... Rf8 {[%clk 0:00:36.9]} 34. Qg4 {[%clk 0:00:01.7]} 34... Rxf2+ {[%clk
0:00:32.7]} 35. Rxf2 {[%clk 0:00:01.1]} 35... Qxf2# {[%clk 0:00:32.4]} 0-1

[Event "Early-Titled-Tuesday-Blitz-August-29-2023"]
[Site "Chess.com"]
[Date "2023.08.29"]
[Round "10"]
[White "Mikhail_Golubev"]
[Black "YellowJacek"]
[Result "1-0"]
[WhiteElo "2549"]
[BlackElo "2340"]
[TimeControl "180+1"]
[EndTime "9:52:57 PDT"]
[Termination "Mikhail_Golubev won by resignation"]

1. e4 {[%clk 0:03:00.9]} 1... c5 {[%clk 0:02:53.9]} 2. Nf3 {[%clk 0:03:00.3]}
2... d6 {[%clk 0:02:54.2]} 3. d4 {[%clk 0:03:00.1]} 3... cxd4 {[%clk 0:02:55.1]}
4. Nxd4 {[%clk 0:03:00.3]} 4... Nf6 {[%clk 0:02:55.5]} 5. Nc3 {[%clk 0:03:00.5]}
5... g6 {[%clk 0:02:56]} 6. Be3 {[%clk 0:02:58.7]} 6... Bg7 {[%clk 0:02:55.9]}
7. f3 {[%clk 0:02:59.4]} 7... O-O {[%clk 0:02:56.4]} 8. Qd2 {[%clk 0:02:59.1]}
8... Nc6 {[%clk 0:02:56.9]} 9. O-O-O {[%clk 0:02:58.7]} 9... d5 {[%clk 0:02:57]}
10. Nxc6 {[%clk 0:02:51.7]} 10... bxc6 {[%clk 0:02:55.3]} 11. Bc4 {[%clk
0:02:47.9]} 11... e6 {[%clk 0:02:38.2]} 12. Bb3 {[%clk 0:02:47.5]} 12... Qc7
{[%clk 0:02:24.7]} 13. h4 {[%clk 0:02:10.4]} 13... a5 {[%clk 0:02:04]} 14. h5
{[%clk 0:02:02.7]} 14... Nxh5 {[%clk 0:02:00.4]} 15. g4 {[%clk 0:02:02.1]} 15...
Nf6 {[%clk 0:01:54.1]} 16. Bh6 {[%clk 0:01:54.8]} 16... a4 {[%clk 0:01:42.1]}
17. Bxg7 {[%clk 0:01:52.3]} 17... Kxg7 {[%clk 0:01:43]} 18. Nxa4 {[%clk
0:01:33.4]} 18... c5 {[%clk 0:01:32.3]} 19. exd5 {[%clk 0:00:58.4]} 19... c4
{[%clk 0:01:19.8]} 20. d6 {[%clk 0:00:54.2]} 20... cxb3 {[%clk 0:01:10.8]} 21.
dxc7 {[%clk 0:00:50.6]} 21... bxa2 {[%clk 0:01:11]} 22. Qh6+ {[%clk 0:00:50.2]}
22... Kg8 {[%clk 0:01:10.4]} 23. Kd2 {[%clk 0:00:50.5]} 23... Rxa4 {[%clk
0:01:08.8]} 24. b3 {[%clk 0:00:40.3]} 24... Ra7 {[%clk 0:00:59.9]} 25. Ra1
{[%clk 0:00:33.6]} 25... Bb7 {[%clk 0:00:55]} 26. Qe3 {[%clk 0:00:25]} 26... Ra6
{[%clk 0:00:46.7]} 27. Kc1 {[%clk 0:00:24.8]} 27... Rc8 {[%clk 0:00:45]} 28. Qe5
{[%clk 0:00:21.9]} 28... Nd5 {[%clk 0:00:43.3]} 29. Kb2 {[%clk 0:00:22.1]} 29...
Rxc7 {[%clk 0:00:39.2]} 30. Rxh7 {[%clk 0:00:20.1]} 30... f6 {[%clk 0:00:25.7]}
31. Rxc7 {[%clk 0:00:19.3]} 31... fxe5 {[%clk 0:00:25.2]} 32. Rxb7 {[%clk
0:00:19.8]} 32... Kf8 {[%clk 0:00:14.8]} 33. Rxa2 {[%clk 0:00:19.5]} 33... Rxa2+
{[%clk 0:00:13.3]} 34. Kxa2 {[%clk 0:00:20.3]} 1-0

[Event "Early-Titled-Tuesday-Blitz-August-29-2023"]
[Site "Chess.com"]
[Date "2023.08.29"]
[Round "10"]
[White "RIPOL"]
[Black "Arteler"]
[Result "0-1"]
[WhiteElo "2429"]
[BlackElo "2250"]
[TimeControl "180+1"]
[EndTime "9:52:59 PDT"]
[Termination "Arteler won by resignation"]

1. d4 {[%clk 0:02:58.5]} 1... d5 {[%clk 0:02:54.3]} 2. c4 {[%clk 0:02:57.7]}
2... c6 {[%clk 0:02:52.4]} 3. Nf3 {[%clk 0:02:56.4]} 3... Nf6 {[%clk 0:02:51.4]}
4. Nc3 {[%clk 0:02:56.7]} 4... a6 {[%clk 0:02:51.1]} 5. e3 {[%clk 0:02:54.6]}
5... Bf5 {[%clk 0:02:49.5]} 6. Bd3 {[%clk 0:02:53]} 6... Bxd3 {[%clk 0:02:49.6]}
7. Qxd3 {[%clk 0:02:52.9]} 7... e6 {[%clk 0:02:50.3]} 8. O-O {[%clk 0:02:52.2]}
8... b5 {[%clk 0:02:49.2]} 9. cxd5 {[%clk 0:02:47.6]} 9... cxd5 {[%clk
0:02:50.1]} 10. Ne5 {[%clk 0:02:44.4]} 10... Be7 {[%clk 0:02:49.1]} 11. f4
{[%clk 0:02:43.7]} 11... O-O {[%clk 0:02:43.9]} 12. Bd2 {[%clk 0:02:42.5]} 12...
Nfd7 {[%clk 0:02:39.1]} 13. Rac1 {[%clk 0:02:34.1]} 13... Nxe5 {[%clk
0:02:39.3]} 14. fxe5 {[%clk 0:02:32.9]} 14... Nd7 {[%clk 0:02:39.6]} 15. Ne2
{[%clk 0:02:23.9]} 15... Bg5 {[%clk 0:02:34]} 16. Nf4 {[%clk 0:02:18.9]} 16...
Rc8 {[%clk 0:02:29.5]} 17. Rxc8 {[%clk 0:02:15.6]} 17... Qxc8 {[%clk 0:02:30.4]}
18. Rc1 {[%clk 0:02:15.1]} 18... Qb8 {[%clk 0:02:30.1]} 19. Qc2 {[%clk
0:02:13.3]} 19... Nb6 {[%clk 0:02:25.4]} 20. Qc7 {[%clk 0:02:11.5]} 20... Nc4
{[%clk 0:02:24.9]} 21. Qxb8 {[%clk 0:02:05.1]} 21... Rxb8 {[%clk 0:02:25.8]} 22.
Rc2 {[%clk 0:02:03.6]} 22... Nxd2 {[%clk 0:02:24.6]} 23. Rxd2 {[%clk 0:02:03]}
23... Rc8 {[%clk 0:02:25.3]} 24. Kf2 {[%clk 0:02:02]} 24... Rc1 {[%clk
0:02:22.2]} 25. Nd3 {[%clk 0:02:00.4]} 25... Ra1 {[%clk 0:02:19.1]} 26. b3
{[%clk 0:01:57.2]} 26... f6 {[%clk 0:02:18.6]} 27. Rc2 {[%clk 0:01:48.2]} 27...
Kf7 {[%clk 0:02:17.3]} 28. h3 {[%clk 0:01:45.7]} 28... h5 {[%clk 0:02:16.5]} 29.
Kf3 {[%clk 0:01:41.6]} 29... h4 {[%clk 0:02:14]} 30. Rc7+ {[%clk 0:01:37.6]}
30... Kg6 {[%clk 0:02:14.3]} 31. Rc6 {[%clk 0:01:23.9]} 31... Rxa2 {[%clk
0:02:02.9]} 32. Rxe6 {[%clk 0:01:23]} 32... Ra3 {[%clk 0:01:53.7]} 33. Ke2
{[%clk 0:01:09]} 33... a5 {[%clk 0:01:51]} 34. Ra6 {[%clk 0:00:56.8]} 34... a4
{[%clk 0:01:51.1]} 35. bxa4 {[%clk 0:00:55.7]} 35... bxa4 {[%clk 0:01:51.5]} 36.
e6 {[%clk 0:00:55.5]} 36... f5 {[%clk 0:01:31.1]} 37. Ne5+ {[%clk 0:00:46.1]}
37... Kh5 {[%clk 0:01:30.7]} 38. Nd3 {[%clk 0:00:36.4]} 38... Kg6 {[%clk
0:01:29.7]} 39. Ne5+ {[%clk 0:00:35.6]} 39... Kf6 {[%clk 0:01:26.7]} 40. Nd3
{[%clk 0:00:21]} 40... Ke7 {[%clk 0:01:24.7]} 41. Nc5 {[%clk 0:00:16.8]} 41...
Rxe3+ {[%clk 0:01:24.1]} 42. Kf2 {[%clk 0:00:17.4]} 42... a3 {[%clk 0:01:17.4]}
43. Ra7+ {[%clk 0:00:17]} 43... Kf6 {[%clk 0:01:16.4]} 44. Rf7+ {[%clk
0:00:16.1]} 44... Kg6 {[%clk 0:01:16.9]} 45. Ra7 {[%clk 0:00:14.5]} 45... f4
{[%clk 0:00:56.5]} 46. Ra6 {[%clk 0:00:13.8]} 46... Bf6 {[%clk 0:00:55.5]} 47.
Ra7 {[%clk 0:00:11.8]} 47... Bxd4 {[%clk 0:00:53.2]} 0-1

[Event "Early-Titled-Tuesday-Blitz-August-29-2023"]
[Site "Chess.com"]
[Date "2023.08.29"]
[Round "10"]
[White "Dewarfd"]
[Black "Cheer_Down"]
[Result "1-0"]
[WhiteElo "2209"]
[BlackElo "2459"]
[TimeControl "180+1"]
[EndTime "9:53:00 PDT"]
[Termination "Dewarfd won by resignation"]

1. d4 {[%clk 0:03:00]} 1... Nf6 {[%clk 0:02:55.3]} 2. e3 {[%clk 0:02:59.9]} 2...
d5 {[%clk 0:02:54.4]} 3. Nf3 {[%clk 0:02:59.8]} 3... c5 {[%clk 0:02:54.6]} 4.
dxc5 {[%clk 0:02:59.2]} 4... e6 {[%clk 0:02:52]} 5. a3 {[%clk 0:02:58.4]} 5...
Bxc5 {[%clk 0:02:50.2]} 6. b4 {[%clk 0:02:58.2]} 6... Be7 {[%clk 0:02:48.8]} 7.
Bb2 {[%clk 0:02:58]} 7... O-O {[%clk 0:02:48.7]} 8. Nbd2 {[%clk 0:02:56.3]} 8...
b6 {[%clk 0:02:49]} 9. c4 {[%clk 0:02:53.7]} 9... Bb7 {[%clk 0:02:49.2]} 10. Be2
{[%clk 0:02:52.1]} 10... a5 {[%clk 0:02:47.5]} 11. b5 {[%clk 0:02:44.6]} 11...
Nbd7 {[%clk 0:02:47.3]} 12. O-O {[%clk 0:02:42.1]} 12... Nc5 {[%clk 0:02:46.4]}
13. cxd5 {[%clk 0:02:38.4]} 13... Bxd5 {[%clk 0:02:44.9]} 14. Ne5 {[%clk
0:02:29.6]} 14... Bd6 {[%clk 0:02:21.1]} 15. Ndf3 {[%clk 0:02:01.4]} 15... Rc8
{[%clk 0:02:16.5]} 16. h3 {[%clk 0:01:51.4]} 16... Nfe4 {[%clk 0:02:13.9]} 17.
Bd4 {[%clk 0:01:46.7]} 17... Nb3 {[%clk 0:02:09.7]} 18. Rb1 {[%clk 0:01:35.4]}
18... Nxd4 {[%clk 0:02:08.9]} 19. exd4 {[%clk 0:01:36.1]} 19... Nc3 {[%clk
0:02:02.5]} 20. Qd2 {[%clk 0:01:20.7]} 20... Nxb1 {[%clk 0:02:02]} 21. Rxb1
{[%clk 0:01:21.6]} 21... Bxa3 {[%clk 0:01:59.6]} 22. Bd3 {[%clk 0:01:09]} 22...
Bb4 {[%clk 0:01:54.8]} 23. Qf4 {[%clk 0:01:06.8]} 23... g6 {[%clk 0:01:37.9]}
24. Qh6 {[%clk 0:00:59]} 24... Be7 {[%clk 0:01:36.4]} 25. Nxg6 {[%clk 0:00:42]}
25... fxg6 {[%clk 0:00:55.7]} 26. Bxg6 {[%clk 0:00:41.6]} 26... Rf7 {[%clk
0:00:53.8]} 27. Bxf7+ {[%clk 0:00:39.7]} 27... Kxf7 {[%clk 0:00:54.1]} 28. Qxh7+
{[%clk 0:00:36.9]} 28... Ke8 {[%clk 0:00:53.2]} 29. Ne5 {[%clk 0:00:34.5]} 29...
Qd6 {[%clk 0:00:42.9]} 30. Qg6+ {[%clk 0:00:23.3]} 30... Kd8 {[%clk 0:00:42.8]}
31. Nf7+ {[%clk 0:00:23.4]} 31... Kd7 {[%clk 0:00:43.4]} 32. Nxd6 {[%clk
0:00:23.6]} 32... Bxd6 {[%clk 0:00:44.3]} 33. Qf7+ {[%clk 0:00:19.1]} 33... Be7
{[%clk 0:00:44.1]} 34. f3 {[%clk 0:00:13.5]} 34... a4 {[%clk 0:00:44.4]} 35. Ra1
{[%clk 0:00:12.7]} 35... a3 {[%clk 0:00:44.6]} 36. Rxa3 {[%clk 0:00:13.3]} 36...
Rc1+ {[%clk 0:00:35.6]} 37. Kh2 {[%clk 0:00:12.5]} 37... Rc7 {[%clk 0:00:35]}
1-0

[Event "Early-Titled-Tuesday-Blitz-August-29-2023"]
[Site "Chess.com"]
[Date "2023.08.29"]
[Round "10"]
[White "Ariadna_Atreides"]
[Black "juancruzarias"]
[Result "0-1"]
[WhiteElo "2225"]
[BlackElo "2693"]
[TimeControl "180+1"]
[EndTime "9:53:01 PDT"]
[Termination "juancruzarias won by resignation"]

1. d4 {[%clk 0:03:00.9]} 1... Nf6 {[%clk 0:02:55.6]} 2. Nf3 {[%clk 0:03:00.5]}
2... e6 {[%clk 0:02:55]} 3. e3 {[%clk 0:03:00.7]} 3... c5 {[%clk 0:02:52.2]} 4.
Bd3 {[%clk 0:03:00.8]} 4... b6 {[%clk 0:02:51.9]} 5. Nbd2 {[%clk 0:03:00.2]}
5... Bb7 {[%clk 0:02:52.2]} 6. O-O {[%clk 0:03:00]} 6... Be7 {[%clk 0:02:51.2]}
7. b3 {[%clk 0:02:59.7]} 7... cxd4 {[%clk 0:02:51]} 8. exd4 {[%clk 0:02:59]}
8... O-O {[%clk 0:02:49.8]} 9. Bb2 {[%clk 0:02:58.6]} 9... Nc6 {[%clk
0:02:42.1]} 10. a3 {[%clk 0:02:54.3]} 10... Nd5 {[%clk 0:02:41.7]} 11. Re1
{[%clk 0:02:47.3]} 11... f5 {[%clk 0:02:36.5]} 12. Ne5 {[%clk 0:02:36.7]} 12...
Nf4 {[%clk 0:02:34.1]} 13. Bf1 {[%clk 0:02:34.8]} 13... Nxe5 {[%clk 0:02:32]}
14. dxe5 {[%clk 0:02:32.2]} 14... Bxa3 {[%clk 0:02:17.6]} 15. Bxa3 {[%clk
0:02:26.6]} 15... Nh3+ {[%clk 0:01:47.6]} 16. Kh1 {[%clk 0:02:08.7]} 16... Nxf2+
{[%clk 0:01:46.6]} 17. Kg1 {[%clk 0:02:08.9]} 17... Nxd1 {[%clk 0:01:46.1]} 18.
Bxf8 {[%clk 0:01:54.5]} 18... Qxf8 {[%clk 0:01:43.1]} 19. Raxd1 {[%clk
0:01:53.5]} 19... Qc5+ {[%clk 0:01:42.6]} 20. Kh1 {[%clk 0:01:52.9]} 20... Qxc2
{[%clk 0:01:40.8]} 21. h3 {[%clk 0:01:45.4]} 21... Rf8 {[%clk 0:01:36.6]} 22.
Nf3 {[%clk 0:01:38.9]} 22... Bxf3 {[%clk 0:01:30.5]} 23. gxf3 {[%clk 0:01:38.3]}
23... Qxb3 {[%clk 0:01:30.9]} 24. Rxd7 {[%clk 0:01:35.1]} 24... Qxf3+ {[%clk
0:01:26.9]} 25. Bg2 {[%clk 0:01:35.4]} 25... Qc3 {[%clk 0:01:26]} 26. Red1
{[%clk 0:01:31.5]} 26... Qxe5 {[%clk 0:01:19.7]} 27. Rxa7 {[%clk 0:01:29.6]}
27... f4 {[%clk 0:01:18.5]} 28. Bf3 {[%clk 0:01:02.9]} 28... b5 {[%clk
0:01:15.6]} 29. Rdd7 {[%clk 0:00:50.5]} 29... b4 {[%clk 0:01:14.1]} 30. Rab7
{[%clk 0:00:48.6]} 30... Rc8 {[%clk 0:01:07.2]} 31. h4 {[%clk 0:00:39.9]} 31...
h5 {[%clk 0:01:03.1]} 32. Kg2 {[%clk 0:00:10.8]} 32... Rc2+ {[%clk 0:00:43.7]}
33. Kh3 {[%clk 0:00:09.1]} 33... Qf5+ {[%clk 0:00:28.9]} 0-1

[Event "Early-Titled-Tuesday-Blitz-August-29-2023"]
[Site "Chess.com"]
[Date "2023.08.29"]
[Round "10"]
[White "LiamPutnam2008"]
[Black "VladimirKramnik"]
[Result "0-1"]
[WhiteElo "2816"]
[BlackElo "2962"]
[TimeControl "180+1"]
[EndTime "9:53:04 PDT"]
[Termination "VladimirKramnik won by resignation"]

1. d4 {[%clk 0:02:57.4]} 1... Nf6 {[%clk 0:02:58.6]} 2. c4 {[%clk 0:02:57.3]}
2... e6 {[%clk 0:02:58.7]} 3. Nf3 {[%clk 0:02:57.3]} 3... d5 {[%clk 0:02:58.8]}
4. Nc3 {[%clk 0:02:57.3]} 4... c6 {[%clk 0:02:57.6]} 5. Bg5 {[%clk 0:02:56.2]}
5... h6 {[%clk 0:02:57.2]} 6. Bxf6 {[%clk 0:02:55.7]} 6... Qxf6 {[%clk
0:02:56.6]} 7. e3 {[%clk 0:02:56.4]} 7... Nd7 {[%clk 0:02:55.4]} 8. Qb3 {[%clk
0:02:47]} 8... g6 {[%clk 0:02:49.8]} 9. e4 {[%clk 0:02:44.7]} 9... dxe4 {[%clk
0:02:42.2]} 10. Nxe4 {[%clk 0:02:44.9]} 10... Qf4 {[%clk 0:02:39.9]} 11. Bd3
{[%clk 0:02:26.8]} 11... Bg7 {[%clk 0:02:38.8]} 12. O-O {[%clk 0:02:23.6]} 12...
O-O {[%clk 0:02:39.3]} 13. Rad1 {[%clk 0:02:21.8]} 13... e5 {[%clk 0:02:36.2]}
14. d5 {[%clk 0:02:05.1]} 14... f5 {[%clk 0:02:34.5]} 15. dxc6 {[%clk
0:01:54.7]} 15... bxc6 {[%clk 0:02:33.9]} 16. Nd6 {[%clk 0:01:50.9]} 16... Nc5
{[%clk 0:02:16.1]} 17. Qa3 {[%clk 0:01:35.5]} 17... Nxd3 {[%clk 0:02:15]} 18.
Qxd3 {[%clk 0:01:36.4]} 18... e4 {[%clk 0:02:12.5]} 19. Qd2 {[%clk 0:01:37]}
19... Qxd2 {[%clk 0:02:10.5]} 20. Nxd2 {[%clk 0:01:37.9]} 20... Bxb2 {[%clk
0:02:08.3]} 21. Nb3 {[%clk 0:01:35.9]} 21... Ba3 {[%clk 0:01:53.3]} 22. Na5
{[%clk 0:01:21.1]} 22... Rd8 {[%clk 0:01:21.1]} 23. Nxc8 {[%clk 0:00:45.7]}
23... Rxd1 {[%clk 0:01:19.2]} 24. Rxd1 {[%clk 0:00:46.6]} 24... Rxc8 {[%clk
0:01:18.9]} 25. Rd7 {[%clk 0:00:46]} 25... Bb4 {[%clk 0:01:05]} 26. Rxa7 {[%clk
0:00:37.3]} 26... Rd8 {[%clk 0:01:04.9]} 27. g3 {[%clk 0:00:33.8]} 27... Rd1+
{[%clk 0:01:02.9]} 28. Kg2 {[%clk 0:00:34.1]} 28... Rd2 {[%clk 0:01:03]} 29. Nb3
{[%clk 0:00:30.4]} 29... Rc2 {[%clk 0:01:00.6]} 30. Ra4 {[%clk 0:00:27.4]} 30...
c5 {[%clk 0:00:56.2]} 31. Kf1 {[%clk 0:00:24.7]} 31... Rb2 {[%clk 0:00:46.2]}
32. Na5 {[%clk 0:00:20.7]} 32... Bc3 {[%clk 0:00:40.9]} 33. Nc6 {[%clk
0:00:18.3]} 33... Bd4 {[%clk 0:00:40.7]} 34. Nxd4 {[%clk 0:00:17]} 34... cxd4
{[%clk 0:00:40.7]} 35. c5 {[%clk 0:00:17.9]} 35... d3 {[%clk 0:00:40.6]} 36. c6
{[%clk 0:00:18.5]} 36... Rb1+ {[%clk 0:00:36.8]} 37. Kg2 {[%clk 0:00:18.5]}
37... Rc1 {[%clk 0:00:36.8]} 38. Ra6 {[%clk 0:00:10.2]} 38... d2 {[%clk
0:00:33.2]} 39. Ra8+ {[%clk 0:00:08.5]} 39... Kf7 {[%clk 0:00:32.5]} 40. Ra7+
{[%clk 0:00:08]} 40... Ke6 {[%clk 0:00:32.2]} 41. Rd7 {[%clk 0:00:08.8]} 41...
d1=Q {[%clk 0:00:31.2]} 42. Rxd1 {[%clk 0:00:09.7]} 42... Rxd1 {[%clk
0:00:31.3]} 0-1

[Event "Early-Titled-Tuesday-Blitz-August-29-2023"]
[Site "Chess.com"]
[Date "2023.08.29"]
[Round "10"]
[White "Gyulamiryan-koryun"]
[Black "RAMBO1STBLOOD"]
[Result "1-0"]
[WhiteElo "2081"]
[BlackElo "2248"]
[TimeControl "180+1"]
[EndTime "9:53:09 PDT"]
[Termination "Gyulamiryan-koryun won by resignation"]

1. c4 {[%clk 0:03:00]} 1... f5 {[%clk 0:02:58.7]} 2. Nc3 {[%clk 0:02:58.9]} 2...
Nf6 {[%clk 0:02:58.3]} 3. b3 {[%clk 0:02:58.7]} 3... d6 {[%clk 0:02:57.7]} 4.
Bb2 {[%clk 0:02:58.5]} 4... e5 {[%clk 0:02:57.7]} 5. d4 {[%clk 0:02:57.4]} 5...
exd4 {[%clk 0:02:55.7]} 6. Qxd4 {[%clk 0:02:57.6]} 6... Nc6 {[%clk 0:02:55.6]}
7. Qd2 {[%clk 0:02:57]} 7... g6 {[%clk 0:02:51.4]} 8. Nf3 {[%clk 0:02:52.3]}
8... Bg7 {[%clk 0:02:51.2]} 9. g3 {[%clk 0:02:52.1]} 9... O-O {[%clk 0:02:50.6]}
10. Bg2 {[%clk 0:02:52.1]} 10... Kh8 {[%clk 0:02:50.4]} 11. O-O {[%clk
0:02:51.9]} 11... Be6 {[%clk 0:02:46.5]} 12. Nd5 {[%clk 0:02:27.4]} 12... Qd7
{[%clk 0:02:31.4]} 13. Ng5 {[%clk 0:02:22.6]} 13... Bg8 {[%clk 0:02:22.7]} 14.
e4 {[%clk 0:02:00.1]} 14... h6 {[%clk 0:02:19.3]} 15. exf5 {[%clk 0:01:42]}
15... hxg5 {[%clk 0:01:55.2]} 16. fxg6 {[%clk 0:01:27.7]} 16... Nxd5 {[%clk
0:01:54.2]} 17. cxd5 {[%clk 0:01:20]} 17... Ne5 {[%clk 0:01:51.8]} 18. Qxg5
{[%clk 0:01:15.7]} 18... Bf6 {[%clk 0:01:31.9]} 19. Qh6+ {[%clk 0:01:07.1]}
19... Bh7 {[%clk 0:01:27.8]} 20. gxh7 {[%clk 0:00:58.1]} 20... Qxh7 {[%clk
0:01:27.1]} 21. Qxh7+ {[%clk 0:00:50]} 21... Kxh7 {[%clk 0:01:26.9]} 22. Be4+
{[%clk 0:00:50.1]} 22... Kg7 {[%clk 0:01:24.8]} 23. f3 {[%clk 0:00:47.4]} 23...
Nxf3+ {[%clk 0:01:21.4]} 24. Bxf3 {[%clk 0:00:38.1]} 24... Bxb2 {[%clk
0:01:20.8]} 25. Rae1 {[%clk 0:00:36.5]} 25... Rae8 {[%clk 0:01:18.6]} 26. Kg2
{[%clk 0:00:35.4]} 26... Bc3 {[%clk 0:01:14.7]} 27. Rc1 {[%clk 0:00:33.5]} 27...
Ba5 {[%clk 0:01:14.4]} 28. b4 {[%clk 0:00:27.7]} 28... Bb6 {[%clk 0:01:14]} 29.
a4 {[%clk 0:00:24.8]} 29... a5 {[%clk 0:01:14]} 30. Rc4 {[%clk 0:00:20.2]} 30...
Re3 {[%clk 0:00:59.8]} 31. Rg4+ {[%clk 0:00:15.5]} 31... Kh6 {[%clk 0:00:55.6]}
32. bxa5 {[%clk 0:00:16.4]} 32... Bxa5 {[%clk 0:00:54.4]} 33. Rh4+ {[%clk
0:00:15.6]} 33... Kg7 {[%clk 0:00:54.3]} 34. Rg4+ {[%clk 0:00:13]} 34... Kh6
{[%clk 0:00:53.8]} 35. h4 {[%clk 0:00:08.3]} 35... Bb6 {[%clk 0:00:49.9]} 36. h5
{[%clk 0:00:07]} 36... Ra3 {[%clk 0:00:43.9]} 37. Rg6+ {[%clk 0:00:06.7]} 37...
Kh7 {[%clk 0:00:43.7]} 38. Rg4 {[%clk 0:00:07]} 38... Ra2+ {[%clk 0:00:40.3]}
39. Kh3 {[%clk 0:00:06.9]} 39... Ra3 {[%clk 0:00:40.4]} 40. Be4+ {[%clk
0:00:06.1]} 40... Kh6 {[%clk 0:00:37.5]} 41. Rxf8 {[%clk 0:00:06.4]} 1-0